[Event "Titled Tuesday Blitz March 28 Late 2023"]
[White "Nakamura, Hikaru"]
[Black "Domingo Nunez, Alejandro"]
[WhiteFideId "2016192"]
[BlackFideId "22245561"]
[WhiteElo "2879"]
[BlackElo "2230"]
[Result "1-0"]
[Round "02"]
[TimeControl "180+2"]
[Date "2023.03.28"]
[WhiteClock "0:01:36"]
[BlackClock "0:00:52"]

1. e4 {[%clk 0:03:00]}  g6 {[%clk 0:02:59]} 2. d4 {[%clk 0:03:00]}  Bg7 {[%clk 0:03:00]} 3. Nc3 {[%clk 0:03:01]}  c6 {[%clk 0:03:01]} 4. h4 {[%clk 0:02:55]}  h5 {[%clk 0:03:00]} 5. Nf3 {[%clk 0:02:55]}  d5 {[%clk 0:03:00]} 6. e5 {[%clk 0:02:55]}  Bg4 {[%clk 0:03:00]} 7. Be2 {[%clk 0:02:54]}  Nh6 {[%clk 0:02:59]} 8. Ng5 {[%clk 0:02:54]}  Bxe2 {[%clk 0:02:59]} 9. Nxe2 {[%clk 0:02:55]}  O-O {[%clk 0:02:59]} 10. e6 {[%clk 0:02:49]}  f6 {[%clk 0:02:58]} 11. Nh3 {[%clk 0:02:43]}  Qd6 {[%clk 0:02:28]} 12. Nef4 {[%clk 0:02:42]}  g5 {[%clk 0:02:28]} 13. hxg5 {[%clk 0:02:25]}  fxg5 {[%clk 0:02:28]} 14. Nxh5 {[%clk 0:02:22]}  Qxe6+ {[%clk 0:02:28]} 15. Kf1 {[%clk 0:02:22]}  Ng4 {[%clk 0:02:28]} 16. Nxg7 {[%clk 0:02:12]}  Kxg7 {[%clk 0:02:22]} 17. Bxg5 {[%clk 0:02:09]}  Qf5 {[%clk 0:02:15]} 18. f3 {[%clk 0:02:05]}  Nd7 {[%clk 0:01:55]} 19. Kg1 {[%clk 0:02:03]}  Ngf6 {[%clk 0:01:55]} 20. Qd2 {[%clk 0:02:03]}  Rh8 {[%clk 0:01:49]} 21. Re1 {[%clk 0:02:03]}  Rag8 {[%clk 0:01:43]} 22. Bxf6+ {[%clk 0:01:56]}  Qxf6 {[%clk 0:01:14]} 23. Qf4 {[%clk 0:01:51]}  Kf8 {[%clk 0:01:09]} 24. Qxf6+ {[%clk 0:01:51]}  Nxf6 {[%clk 0:01:10]} 25. c3 {[%clk 0:01:48]}  Nh5 {[%clk 0:01:08]} 26. Kf2 {[%clk 0:01:47]}  Ng3 {[%clk 0:01:08]} 27. Rhg1 {[%clk 0:01:47]}  Kf7 {[%clk 0:01:04]} 28. Re5 {[%clk 0:01:46]}  Kf6 {[%clk 0:01:02]} 29. Rge1 {[%clk 0:01:46]}  Nf5 {[%clk 0:01:00]} 30. g4 {[%clk 0:01:45]}  Nh4 {[%clk 0:00:58]} 31. Re6+ {[%clk 0:01:45]}  Kg7 {[%clk 0:00:57]} 32. Rxe7+ {[%clk 0:01:46]}  Kf8 {[%clk 0:00:55]} 33. Nf4 {[%clk 0:01:38]}  Nf5 {[%clk 0:00:52]} 34. Re8+ {[%clk 0:01:34]}  Kf7 {[%clk 0:00:52]} 35. Rxg8 {[%clk 0:01:35]}  Rh2+ {[%clk 0:00:52]} 36. Kg1 {[%clk 0:01:36]} 1-0


[Site "https://www.chess.com"]

[Event "Titled Tuesday Blitz March 28 Late 2023"]
[White "Sieciechowicz, Marcin"]
[Black "Vachier-Lagrave, Maxime"]
[WhiteFideId "1130170"]
[BlackFideId "623539"]
[WhiteElo "2302"]
[BlackElo "2740"]
[Result "0-1"]
[Round "02"]
[TimeControl "180+2"]
[Date "2023.03.28"]
[WhiteClock "0:00:03"]
[BlackClock "0:01:46"]

1. d4 {[%clk 0:02:49]}  Nf6 {[%clk 0:02:58]} 2. c4 {[%clk 0:02:49]}  e6 {[%clk 0:02:58]} 3. Nc3 {[%clk 0:02:48]}  Bb4 {[%clk 0:02:56]} 4. Qc2 {[%clk 0:02:48]}  c5 {[%clk 0:02:55]} 5. dxc5 {[%clk 0:02:47]}  O-O {[%clk 0:02:55]} 6. Nf3 {[%clk 0:02:44]}  Bxc5 {[%clk 0:02:54]} 7. Bg5 {[%clk 0:02:06]}  h6 {[%clk 0:02:51]} 8. Bh4 {[%clk 0:02:01]}  Be7 {[%clk 0:02:49]} 9. e3 {[%clk 0:01:52]}  d5 {[%clk 0:02:49]} 10. cxd5 {[%clk 0:01:52]}  exd5 {[%clk 0:02:48]} 11. Rd1 {[%clk 0:01:42]}  Nc6 {[%clk 0:02:38]} 12. Bxf6 {[%clk 0:01:17]}  Bxf6 {[%clk 0:02:39]} 13. Nxd5 {[%clk 0:01:17]}  Be6 {[%clk 0:02:28]} 14. Nxf6+ {[%clk 0:00:53]}  Qxf6 {[%clk 0:02:29]} 15. Bc4 {[%clk 0:00:53]}  Bg4 {[%clk 0:02:03]} 16. O-O {[%clk 0:00:40]}  Bxf3 {[%clk 0:02:02]} 17. gxf3 {[%clk 0:00:41]}  Qxf3 {[%clk 0:01:58]} 18. Bd5 {[%clk 0:00:41]}  Qf6 {[%clk 0:01:57]} 19. Bxc6 {[%clk 0:00:25]}  Rac8 {[%clk 0:01:55]} 20. Rd4 {[%clk 0:00:15]}  Rxc6 {[%clk 0:01:55]} 21. Qd2 {[%clk 0:00:15]}  Qf3 {[%clk 0:01:54]} 22. Rd6 {[%clk 0:00:12]}  Rc5 {[%clk 0:01:54]} 23. Rc1 {[%clk 0:00:05]}  Rg5+ {[%clk 0:01:46]} 24. Kf1 {[%clk 0:00:05]}  Rg2 {[%clk 0:01:46]} 25. Rd1 {[%clk 0:00:03]}  Rxh2 {[%clk 0:01:46]} 0-1


[Site "https://www.chess.com"]

[Event "Titled Tuesday Blitz March 28 Late 2023"]
[White "Bortnyk, Olexandr"]
[Black "Thomforde-Toates, Noah"]
[WhiteFideId "14120828"]
[BlackFideId "30951992"]
[WhiteElo "2734"]
[BlackElo "2657"]
[Result "1-0"]
[Round "02"]
[TimeControl "180+2"]
[Date "2023.03.28"]
[WhiteClock "0:00:09"]
[BlackClock "0:00:04"]

1. d4 {[%clk 0:03:00]}  Nf6 {[%clk 0:02:50]} 2. Nc3 {[%clk 0:03:01]}  d6 {[%clk 0:02:40]} 3. e4 {[%clk 0:03:00]}  e5 {[%clk 0:02:38]} 4. Nf3 {[%clk 0:03:00]}  Nbd7 {[%clk 0:02:38]} 5. Bc4 {[%clk 0:03:00]}  Be7 {[%clk 0:02:36]} 6. O-O {[%clk 0:03:01]}  c6 {[%clk 0:02:35]} 7. a4 {[%clk 0:03:00]}  h6 {[%clk 0:02:35]} 8. Re1 {[%clk 0:02:57]}  Qc7 {[%clk 0:02:35]} 9. h3 {[%clk 0:02:57]}  a5 {[%clk 0:02:35]} 10. Be3 {[%clk 0:02:57]}  g5 {[%clk 0:02:34]} 11. dxe5 {[%clk 0:02:36]}  Nxe5 {[%clk 0:02:32]} 12. Be2 {[%clk 0:02:00]}  Rg8 {[%clk 0:02:27]} 13. Nd4 {[%clk 0:01:58]}  Be6 {[%clk 0:01:32]} 14. Nxe6 {[%clk 0:01:50]}  fxe6 {[%clk 0:01:32]} 15. Qd4 {[%clk 0:01:46]}  Ng6 {[%clk 0:01:21]} 16. Rad1 {[%clk 0:01:41]}  Nf4 {[%clk 0:01:18]} 17. Bc4 {[%clk 0:01:28]}  e5 {[%clk 0:01:05]} 18. Qd2 {[%clk 0:01:25]}  Rg7 {[%clk 0:01:04]} 19. Bxf4 {[%clk 0:00:51]}  gxf4 {[%clk 0:01:03]} 20. Be6 {[%clk 0:00:51]}  Qb6 {[%clk 0:00:53]} 21. Qd3 {[%clk 0:00:47]}  Rd8 {[%clk 0:00:51]} 22. Rf1 {[%clk 0:00:31]}  Nh7 {[%clk 0:00:47]} 23. Kh2 {[%clk 0:00:29]}  Ng5 {[%clk 0:00:42]} 24. Bg4 {[%clk 0:00:29]}  h5 {[%clk 0:00:37]} 25. Bxh5+ {[%clk 0:00:29]}  Kd7 {[%clk 0:00:38]} 26. Qc4 {[%clk 0:00:27]}  Rh8 {[%clk 0:00:35]} 27. Bg4+ {[%clk 0:00:28]}  Ke8 {[%clk 0:00:34]} 28. Bf5 {[%clk 0:00:24]}  f3 {[%clk 0:00:33]} 29. gxf3 {[%clk 0:00:14]}  Nxf3+ {[%clk 0:00:31]} 30. Kh1 {[%clk 0:00:14]}  Qxb2 {[%clk 0:00:17]} 31. Ne2 {[%clk 0:00:11]}  Qb4 {[%clk 0:00:15]} 32. Qe6 {[%clk 0:00:10]}  Qb6 {[%clk 0:00:11]} 33. Rxd6 {[%clk 0:00:08]}  Qa6 {[%clk 0:00:05]} 34. Rd8+ {[%clk 0:00:08]}  Kxd8 {[%clk 0:00:04]} 35. Qd7# {[%clk 0:00:09]} 1-0


[Site "https://www.chess.com"]

[Event "Titled Tuesday Blitz March 28 Late 2023"]
[White "Caruana, Fabiano"]
[Black "Cuenca Jimenez, Jose Fernando"]
[WhiteFideId "2020009"]
[BlackFideId "2255570"]
[WhiteElo "2818"]
[BlackElo "2429"]
[Result "1-0"]
[Round "02"]
[TimeControl "180+2"]
[Date "2023.03.28"]
[WhiteClock "0:01:18"]
[BlackClock "0:00:01"]

1. d4 {[%clk 0:03:00]}  d6 {[%clk 0:02:57]} 2. c4 {[%clk 0:03:01]}  Nf6 {[%clk 0:02:54]} 3. Nc3 {[%clk 0:03:00]}  e5 {[%clk 0:02:54]} 4. Nf3 {[%clk 0:03:00]}  e4 {[%clk 0:02:53]} 5. Ng5 {[%clk 0:02:59]}  Qe7 {[%clk 0:02:53]} 6. Qc2 {[%clk 0:02:59]}  Bf5 {[%clk 0:02:53]} 7. g3 {[%clk 0:02:58]}  h6 {[%clk 0:02:50]} 8. Nh3 {[%clk 0:02:58]}  g5 {[%clk 0:02:48]} 9. Bg2 {[%clk 0:02:56]}  Bg7 {[%clk 0:02:45]} 10. e3 {[%clk 0:02:55]}  O-O {[%clk 0:02:43]} 11. Ng1 {[%clk 0:02:55]}  Bg6 {[%clk 0:02:37]} 12. Nge2 {[%clk 0:02:53]}  c6 {[%clk 0:02:34]} 13. b4 {[%clk 0:02:39]}  a5 {[%clk 0:02:27]} 14. b5 {[%clk 0:02:38]}  Nbd7 {[%clk 0:02:22]} 15. O-O {[%clk 0:02:35]}  h5 {[%clk 0:02:16]} 16. Rb1 {[%clk 0:02:32]}  c5 {[%clk 0:02:06]} 17. Na4 {[%clk 0:02:27]}  h4 {[%clk 0:01:59]} 18. Bb2 {[%clk 0:02:23]}  Rfe8 {[%clk 0:01:56]} 19. Rbd1 {[%clk 0:02:21]}  Bh5 {[%clk 0:01:48]} 20. Bh3 {[%clk 0:02:05]}  Bf3 {[%clk 0:01:11]} 21. Bf5 {[%clk 0:01:49]}  Bg4 {[%clk 0:00:44]} 22. Bxg4 {[%clk 0:01:48]}  Nxg4 {[%clk 0:00:44]} 23. h3 {[%clk 0:01:44]}  Nh6 {[%clk 0:00:38]} 24. dxc5 {[%clk 0:01:41]}  dxc5 {[%clk 0:00:37]} 25. Bxg7 {[%clk 0:01:40]}  Kxg7 {[%clk 0:00:38]} 26. Rd5 {[%clk 0:01:38]}  f5 {[%clk 0:00:08]} 27. Rfd1 {[%clk 0:01:38]}  Nf6 {[%clk 0:00:08]} 28. Rxc5 {[%clk 0:01:31]}  Rad8 {[%clk 0:00:08]} 29. Nd4 {[%clk 0:01:29]}  Kg6 {[%clk 0:00:08]} 30. b6 {[%clk 0:01:27]}  Rd6 {[%clk 0:00:07]} 31. Rc7 {[%clk 0:01:27]}  Qe5 {[%clk 0:00:07]} 32. Rc5 {[%clk 0:01:24]}  Qe7 {[%clk 0:00:06]} 33. gxh4 {[%clk 0:01:20]}  gxh4 {[%clk 0:00:06]} 34. Kh1 {[%clk 0:01:20]}  Kh5 {[%clk 0:00:03]} 35. Rg1 {[%clk 0:01:19]}  Nfg4 {[%clk 0:00:01]} 36. Nxf5 {[%clk 0:01:18]} 1-0


[Site "https://www.chess.com"]

[Event "Titled Tuesday Blitz March 28 Late 2023"]
[White "Ozer, Omer Faruk"]
[Black "Firouzja, Alireza"]
[WhiteFideId "6354564"]
[BlackFideId "12573981"]
[WhiteElo "2260"]
[BlackElo "2904"]
[Result "0-1"]
[Round "02"]
[TimeControl "180+2"]
[Date "2023.03.28"]
[WhiteClock "0:00:10"]
[BlackClock "0:00:03"]

1. e4 {[%clk 0:03:00]}  c5 {[%clk 0:02:59]} 2. Nf3 {[%clk 0:03:00]}  d6 {[%clk 0:02:59]} 3. d4 {[%clk 0:03:00]}  cxd4 {[%clk 0:03:00]} 4. Nxd4 {[%clk 0:03:01]}  Nf6 {[%clk 0:03:01]} 5. Nc3 {[%clk 0:03:02]}  a6 {[%clk 0:03:01]} 6. Nb3 {[%clk 0:03:00]}  e6 {[%clk 0:02:58]} 7. g4 {[%clk 0:03:00]}  h6 {[%clk 0:02:54]} 8. Bg2 {[%clk 0:02:57]}  Nc6 {[%clk 0:02:48]} 9. f4 {[%clk 0:02:42]}  Qc7 {[%clk 0:02:42]} 10. O-O {[%clk 0:02:39]}  Be7 {[%clk 0:02:38]} 11. Be3 {[%clk 0:02:35]}  b6 {[%clk 0:02:08]} 12. Kh1 {[%clk 0:02:25]}  Bb7 {[%clk 0:02:05]} 13. Qe2 {[%clk 0:02:25]}  g5 {[%clk 0:01:34]} 14. e5 {[%clk 0:01:33]}  dxe5 {[%clk 0:01:25]} 15. f5 {[%clk 0:01:33]}  Nb4 {[%clk 0:01:07]} 16. fxe6 {[%clk 0:01:30]}  fxe6 {[%clk 0:01:08]} 17. Rae1 {[%clk 0:01:09]}  Nbd5 {[%clk 0:01:03]} 18. Nxd5 {[%clk 0:01:03]}  Nxd5 {[%clk 0:00:52]} 19. Bc1 {[%clk 0:01:02]}  Bd6 {[%clk 0:00:51]} 20. c4 {[%clk 0:00:46]}  Nf4 {[%clk 0:00:51]} 21. Bxf4 {[%clk 0:00:46]}  gxf4 {[%clk 0:00:52]} 22. Nd2 {[%clk 0:00:46]}  O-O-O {[%clk 0:00:48]} 23. Ne4 {[%clk 0:00:37]}  Bb4 {[%clk 0:00:44]} 24. Rc1 {[%clk 0:00:33]}  Kb8 {[%clk 0:00:42]} 25. a3 {[%clk 0:00:33]}  Be7 {[%clk 0:00:31]} 26. b4 {[%clk 0:00:26]}  Bc6 {[%clk 0:00:10]} 27. c5 {[%clk 0:00:21]}  b5 {[%clk 0:00:11]} 28. a4 {[%clk 0:00:22]}  Rd4 {[%clk 0:00:09]} 29. Rfe1 {[%clk 0:00:18]}  Rf8 {[%clk 0:00:08]} 30. Bf3 {[%clk 0:00:17]}  Rxb4 {[%clk 0:00:08]} 31. axb5 {[%clk 0:00:16]}  axb5 {[%clk 0:00:06]} 32. Rb1 {[%clk 0:00:16]}  Rxb1 {[%clk 0:00:05]} 33. Rxb1 {[%clk 0:00:17]}  Qb7 {[%clk 0:00:02]} 34. Kg2 {[%clk 0:00:16]}  Rd8 {[%clk 0:00:02]} 35. Nc3 {[%clk 0:00:13]}  Bxf3+ {[%clk 0:00:02]} 36. Qxf3 {[%clk 0:00:13]}  Rd2+ {[%clk 0:00:02]} 37. Ne2 {[%clk 0:00:10]}  Rxe2+ {[%clk 0:00:03]} 0-1


[Site "https://www.chess.com"]

[Event "Titled Tuesday Blitz March 28 Late 2023"]
[White "Fedoseev, Vladimir"]
[Black "Hardaway, Brewington"]
[WhiteFideId "24130737"]
[BlackFideId "30941849"]
[WhiteElo "2752"]
[BlackElo "2159"]
[Result "1-0"]
[Round "02"]
[TimeControl "180+2"]
[Date "2023.03.28"]
[WhiteClock "0:00:11"]
[BlackClock "0:00:01"]

1. e4 {[%clk 0:02:57]}  e5 {[%clk 0:02:56]} 2. Nf3 {[%clk 0:02:56]}  Nf6 {[%clk 0:02:57]} 3. Nc3 {[%clk 0:02:55]}  Nc6 {[%clk 0:02:57]} 4. Bb5 {[%clk 0:02:55]}  Bc5 {[%clk 0:02:57]} 5. d3 {[%clk 0:02:52]}  O-O {[%clk 0:02:56]} 6. O-O {[%clk 0:02:50]}  Re8 {[%clk 0:02:42]} 7. Bg5 {[%clk 0:02:45]}  a6 {[%clk 0:02:24]} 8. Bxc6 {[%clk 0:02:39]}  dxc6 {[%clk 0:02:23]} 9. h3 {[%clk 0:02:39]}  h6 {[%clk 0:02:14]} 10. Be3 {[%clk 0:02:39]}  Bf8 {[%clk 0:02:08]} 11. Nd2 {[%clk 0:02:38]}  c5 {[%clk 0:02:08]} 12. a4 {[%clk 0:02:36]}  g5 {[%clk 0:01:35]} 13. Qf3 {[%clk 0:02:29]}  b6 {[%clk 0:01:27]} 14. a5 {[%clk 0:02:09]}  Bg7 {[%clk 0:01:24]} 15. axb6 {[%clk 0:02:05]}  cxb6 {[%clk 0:01:23]} 16. g4 {[%clk 0:01:54]}  Be6 {[%clk 0:01:18]} 17. Qg3 {[%clk 0:01:51]}  Nd7 {[%clk 0:01:14]} 18. Kg2 {[%clk 0:01:43]}  Nf8 {[%clk 0:01:14]} 19. Nf3 {[%clk 0:01:24]}  Ng6 {[%clk 0:01:13]} 20. Rh1 {[%clk 0:01:25]}  Nf4+ {[%clk 0:01:10]} 21. Kg1 {[%clk 0:01:19]}  b5 {[%clk 0:01:08]} 22. Re1 {[%clk 0:01:09]}  c4 {[%clk 0:01:00]} 23. dxc4 {[%clk 0:01:07]}  Bxc4 {[%clk 0:00:58]} 24. Nd2 {[%clk 0:01:01]}  Rc8 {[%clk 0:00:51]} 25. Nxc4 {[%clk 0:00:59]}  Rxc4 {[%clk 0:00:50]} 26. Qf3 {[%clk 0:00:58]}  b4 {[%clk 0:00:48]} 27. Rd1 {[%clk 0:00:54]}  Qc8 {[%clk 0:00:43]} 28. Nd5 {[%clk 0:00:46]}  Rxc2 {[%clk 0:00:42]} 29. Nxb4 {[%clk 0:00:36]}  Rxb2 {[%clk 0:00:42]} 30. Nd5 {[%clk 0:00:36]}  Qc4 {[%clk 0:00:24]} 31. h4 {[%clk 0:00:32]}  Qe2 {[%clk 0:00:22]} 32. Qxe2 {[%clk 0:00:31]}  Nxe2+ {[%clk 0:00:22]} 33. Kg2 {[%clk 0:00:31]}  Nf4+ {[%clk 0:00:22]} 34. Kf3 {[%clk 0:00:29]}  a5 {[%clk 0:00:17]} 35. hxg5 {[%clk 0:00:23]}  hxg5 {[%clk 0:00:18]} 36. Nc7 {[%clk 0:00:19]}  Rc8 {[%clk 0:00:16]} 37. Rd7 {[%clk 0:00:18]}  Rb7 {[%clk 0:00:15]} 38. Rc1 {[%clk 0:00:17]}  a4 {[%clk 0:00:09]} 39. Nd5 {[%clk 0:00:04]}  Rxd7 {[%clk 0:00:07]} 40. Rxc8+ {[%clk 0:00:04]}  Kh7 {[%clk 0:00:07]} 41. Nb6 {[%clk 0:00:05]}  Rd6 {[%clk 0:00:05]} 42. Nxa4 {[%clk 0:00:05]}  Ne6 {[%clk 0:00:05]} 43. Nc3 {[%clk 0:00:05]}  Kg6 {[%clk 0:00:05]} 44. Nd5 {[%clk 0:00:05]}  Ra6 {[%clk 0:00:06]} 45. Ne7+ {[%clk 0:00:05]}  Kf6 {[%clk 0:00:06]} 46. Nf5 {[%clk 0:00:06]}  Ra3 {[%clk 0:00:05]} 47. Rb8 {[%clk 0:00:06]}  Nd4+ {[%clk 0:00:05]} 48. Kg2 {[%clk 0:00:06]}  Ne6 {[%clk 0:00:05]} 49. Rb6 {[%clk 0:00:06]}  Ra4 {[%clk 0:00:04]} 50. Kf3 {[%clk 0:00:06]}  Ra3 {[%clk 0:00:04]} 51. Ng3 {[%clk 0:00:06]}  Kg6 {[%clk 0:00:04]} 52. Nf5 {[%clk 0:00:06]}  Bf8 {[%clk 0:00:04]} 53. Rb7 {[%clk 0:00:06]}  Bc5 {[%clk 0:00:05]} 54. Rb8 {[%clk 0:00:07]}  Bxe3 {[%clk 0:00:04]} 55. fxe3 {[%clk 0:00:08]}  Nd4+ {[%clk 0:00:04]} 56. Kf2 {[%clk 0:00:08]}  Nxf5 {[%clk 0:00:04]} 57. exf5+ {[%clk 0:00:08]}  Kg7 {[%clk 0:00:04]} 58. Rb5 {[%clk 0:00:09]}  f6 {[%clk 0:00:04]} 59. Rb7+ {[%clk 0:00:09]}  Kf8 {[%clk 0:00:04]} 60. Kf3 {[%clk 0:00:10]}  Ra4 {[%clk 0:00:04]} 61. Rc7 {[%clk 0:00:11]}  Kg8 {[%clk 0:00:04]} 62. Rd7 {[%clk 0:00:10]}  Kf8 {[%clk 0:00:05]} 63. Rd6 {[%clk 0:00:10]}  Kf7 {[%clk 0:00:05]} 64. Rb6 {[%clk 0:00:11]}  Ke7 {[%clk 0:00:06]} 65. Rb2 {[%clk 0:00:11]}  Ra3 {[%clk 0:00:06]} 66. Ke4 {[%clk 0:00:11]}  Ra4+ {[%clk 0:00:06]} 67. Kd5 {[%clk 0:00:11]}  Rxg4 {[%clk 0:00:06]} 68. Rb7+ {[%clk 0:00:11]}  Kd8 {[%clk 0:00:07]} 69. Ke6 {[%clk 0:00:12]}  Re4 {[%clk 0:00:07]} 70. Rb3 {[%clk 0:00:11]}  g4 {[%clk 0:00:07]} 71. Kxf6 {[%clk 0:00:10]}  g3 {[%clk 0:00:07]} 72. Rd3+ {[%clk 0:00:09]}  Ke8 {[%clk 0:00:07]} 73. Ke6 {[%clk 0:00:08]}  Ra4 {[%clk 0:00:04]} 74. f6 {[%clk 0:00:08]}  Ra6+ {[%clk 0:00:04]} 75. Kf5 {[%clk 0:00:08]}  g2 {[%clk 0:00:04]} 76. Rd1 {[%clk 0:00:09]}  Kf7 {[%clk 0:00:04]} 77. Rd7+ {[%clk 0:00:10]}  Ke8 {[%clk 0:00:05]} 78. Rg7 {[%clk 0:00:11]}  Ra2 {[%clk 0:00:04]} 79. Kxe5 {[%clk 0:00:11]}  Ra5+ {[%clk 0:00:02]} 80. Kf4 {[%clk 0:00:11]}  Ra6 {[%clk 0:00:01]} 81. Kf5 {[%clk 0:00:11]}  Ra5+ {[%clk 0:00:01]} 82. Ke4 {[%clk 0:00:11]} 1-0


[Site "https://www.chess.com"]

[Event "Titled Tuesday Blitz March 28 Late 2023"]
[White "Kollars, Dmitrij"]
[Black "Djokic, Mihailo"]
[WhiteFideId "12909572"]
[BlackFideId "976440"]
[WhiteElo "2584"]
[BlackElo "2294"]
[Result "0-1"]
[Round "02"]
[TimeControl "180+2"]
[Date "2023.03.28"]
[WhiteClock "0:00:07"]
[BlackClock "0:00:07"]

1. Nf3 {[%clk 0:03:00]}  Nf6 {[%clk 0:02:59]} 2. d4 {[%clk 0:03:01]}  g6 {[%clk 0:02:59]} 3. c4 {[%clk 0:03:00]}  Bg7 {[%clk 0:02:59]} 4. Nc3 {[%clk 0:03:00]}  O-O {[%clk 0:03:00]} 5. e4 {[%clk 0:02:58]}  d6 {[%clk 0:03:00]} 6. Be2 {[%clk 0:02:57]}  e5 {[%clk 0:02:58]} 7. O-O {[%clk 0:02:56]}  Nc6 {[%clk 0:02:59]} 8. d5 {[%clk 0:02:55]}  Ne7 {[%clk 0:02:59]} 9. Bg5 {[%clk 0:02:53]}  Ne8 {[%clk 0:02:52]} 10. Nd2 {[%clk 0:02:47]}  h6 {[%clk 0:02:52]} 11. Be3 {[%clk 0:02:47]}  f5 {[%clk 0:02:51]} 12. f3 {[%clk 0:02:46]}  f4 {[%clk 0:02:43]} 13. Bf2 {[%clk 0:02:46]}  g5 {[%clk 0:02:44]} 14. c5 {[%clk 0:02:46]}  Ng6 {[%clk 0:02:41]} 15. Rc1 {[%clk 0:02:40]}  Rf7 {[%clk 0:02:39]} 16. Nb5 {[%clk 0:02:31]}  a6 {[%clk 0:02:34]} 17. Na3 {[%clk 0:02:31]}  dxc5 {[%clk 0:01:55]} 18. Bxc5 {[%clk 0:02:28]}  Kh7 {[%clk 0:01:41]} 19. Qb3 {[%clk 0:02:18]}  h5 {[%clk 0:01:26]} 20. d6 {[%clk 0:02:11]}  Rd7 {[%clk 0:01:16]} 21. dxc7 {[%clk 0:02:06]}  Nxc7 {[%clk 0:00:57]} 22. Ndc4 {[%clk 0:02:04]}  Ne6 {[%clk 0:00:54]} 23. Nb6 {[%clk 0:01:54]}  Rd2 {[%clk 0:00:46]} 24. Nxa8 {[%clk 0:01:35]}  Nxc5 {[%clk 0:00:45]} 25. Rxc5 {[%clk 0:01:35]}  Qd4+ {[%clk 0:00:45]} 26. Kh1 {[%clk 0:01:35]}  Qxc5 {[%clk 0:00:45]} 27. Qc4 {[%clk 0:01:03]}  Qxc4 {[%clk 0:00:41]} 28. Bxc4 {[%clk 0:01:04]}  b5 {[%clk 0:00:35]} 29. Bd5 {[%clk 0:01:02]}  Rxb2 {[%clk 0:00:34]} 30. Nb6 {[%clk 0:01:01]}  Ne7 {[%clk 0:00:28]} 31. Bb3 {[%clk 0:00:37]}  Bb7 {[%clk 0:00:22]} 32. Rd1 {[%clk 0:00:31]}  Bc6 {[%clk 0:00:19]} 33. Nc2 {[%clk 0:00:31]}  a5 {[%clk 0:00:16]} 34. Ne1 {[%clk 0:00:21]}  a4 {[%clk 0:00:16]} 35. Nd3 {[%clk 0:00:22]}  Re2 {[%clk 0:00:11]} 36. Bf7 {[%clk 0:00:23]}  g4 {[%clk 0:00:08]} 37. Bxh5 {[%clk 0:00:21]}  gxf3 {[%clk 0:00:09]} 38. Bxf3 {[%clk 0:00:17]}  Rxa2 {[%clk 0:00:09]} 39. Nb4 {[%clk 0:00:18]}  Rb2 {[%clk 0:00:08]} 40. N6d5 {[%clk 0:00:14]}  Bxd5 {[%clk 0:00:07]} 41. Nxd5 {[%clk 0:00:13]}  Nc6 {[%clk 0:00:08]} 42. Bg4 {[%clk 0:00:13]}  Nd4 {[%clk 0:00:08]} 43. Bf5+ {[%clk 0:00:13]}  Nxf5 {[%clk 0:00:08]} 44. exf5 {[%clk 0:00:14]}  e4 {[%clk 0:00:08]} 45. f6 {[%clk 0:00:14]}  e3 {[%clk 0:00:08]} 46. fxg7 {[%clk 0:00:13]}  e2 {[%clk 0:00:08]} 47. Re1 {[%clk 0:00:13]}  Rd2 {[%clk 0:00:09]} 48. Kg1 {[%clk 0:00:08]}  Rxd5 {[%clk 0:00:09]} 49. Rxe2 {[%clk 0:00:08]}  Kxg7 {[%clk 0:00:07]} 50. Re7+ {[%clk 0:00:09]}  Kf6 {[%clk 0:00:07]} 51. Ra7 {[%clk 0:00:10]}  Ke5 {[%clk 0:00:07]} 52. h4 {[%clk 0:00:09]}  Kf5 {[%clk 0:00:07]} 53. Kf2 {[%clk 0:00:08]}  Kg4 {[%clk 0:00:07]} 54. Rg7+ {[%clk 0:00:08]}  Kxh4 {[%clk 0:00:07]} 55. Kf3 {[%clk 0:00:09]}  Rd4 {[%clk 0:00:07]} 56. Rb7 {[%clk 0:00:07]}  Rb4 {[%clk 0:00:07]} 57. Rg7 {[%clk 0:00:05]}  a3 {[%clk 0:00:07]} 58. Ra7 {[%clk 0:00:05]}  Ra4 {[%clk 0:00:06]} 59. Rh7+ {[%clk 0:00:03]}  Kg5 {[%clk 0:00:06]} 60. Rh1 {[%clk 0:00:04]}  a2 {[%clk 0:00:06]} 61. Ra1 {[%clk 0:00:05]}  Ra3+ {[%clk 0:00:07]} 62. Ke4 {[%clk 0:00:05]}  Kg4 {[%clk 0:00:07]} 63. Kd4 {[%clk 0:00:05]}  Kg3 {[%clk 0:00:08]} 64. Kc5 {[%clk 0:00:06]}  Kxg2 {[%clk 0:00:06]} 65. Kb4 {[%clk 0:00:06]}  Ra8 {[%clk 0:00:04]} 66. Kb3 {[%clk 0:00:06]}  f3 {[%clk 0:00:04]} 67. Rc1 {[%clk 0:00:05]}  a1=Q {[%clk 0:00:04]} 68. Rc7 {[%clk 0:00:05]}  Ra3+ {[%clk 0:00:03]} 69. Kb4 {[%clk 0:00:05]}  Qb2+ {[%clk 0:00:04]} 70. Kc5 {[%clk 0:00:05]}  Rc3+ {[%clk 0:00:05]} 71. Kb6 {[%clk 0:00:06]}  Rxc7 {[%clk 0:00:06]} 72. Ka6 {[%clk 0:00:06]}  Qa3+ {[%clk 0:00:05]} 73. Kb6 {[%clk 0:00:07]}  Qa7+ {[%clk 0:00:06]} 74. Kxb5 {[%clk 0:00:07]}  Rc5+ {[%clk 0:00:07]} 0-1


[Site "https://www.chess.com"]

[Event "Titled Tuesday Blitz March 28 Late 2023"]
[White "Sai Krishna G V"]
[Black "Duda, Jan-Krzysztof"]
[WhiteFideId "5028280"]
[BlackFideId "1170546"]
[WhiteElo "2359"]
[BlackElo "2790"]
[Result "0-1"]
[Round "02"]
[TimeControl "180+2"]
[Date "2023.03.28"]
[WhiteClock "0:01:18"]
[BlackClock "0:01:59"]

1. d4 {[%clk 0:03:00]}  Nf6 {[%clk 0:02:59]} 2. Nf3 {[%clk 0:02:59]}  g6 {[%clk 0:02:59]} 3. Bf4 {[%clk 0:02:59]}  Bg7 {[%clk 0:02:58]} 4. e3 {[%clk 0:02:59]}  c5 {[%clk 0:02:53]} 5. Nbd2 {[%clk 0:02:55]}  cxd4 {[%clk 0:02:50]} 6. exd4 {[%clk 0:02:56]}  O-O {[%clk 0:02:51]} 7. h4 {[%clk 0:02:52]}  d6 {[%clk 0:02:49]} 8. Bd3 {[%clk 0:02:42]}  h6 {[%clk 0:02:41]} 9. Qe2 {[%clk 0:02:22]}  Nc6 {[%clk 0:02:40]} 10. O-O-O {[%clk 0:02:19]}  Nb4 {[%clk 0:02:13]} 11. Bc4 {[%clk 0:01:44]}  Bf5 {[%clk 0:02:08]} 12. Ne1 {[%clk 0:01:41]}  b5 {[%clk 0:02:05]} 13. Bxb5 {[%clk 0:01:35]}  Nfd5 {[%clk 0:02:02]} 14. Bg3 {[%clk 0:01:28]}  Nxa2+ {[%clk 0:02:01]} 15. Kb1 {[%clk 0:01:27]}  Nac3+ {[%clk 0:02:02]} 16. bxc3 {[%clk 0:01:28]}  Nxc3+ {[%clk 0:02:03]} 17. Kc1 {[%clk 0:01:28]}  Nxe2+ {[%clk 0:02:03]} 18. Bxe2 {[%clk 0:01:29]}  Bxd4 {[%clk 0:02:03]} 19. Nb3 {[%clk 0:01:25]}  Bg7 {[%clk 0:02:03]} 20. Bf4 {[%clk 0:01:24]}  a5 {[%clk 0:02:03]} 21. g4 {[%clk 0:01:24]}  Be4 {[%clk 0:02:01]} 22. f3 {[%clk 0:01:24]}  a4 {[%clk 0:02:02]} 23. fxe4 {[%clk 0:01:17]}  axb3 {[%clk 0:02:01]} 24. cxb3 {[%clk 0:01:18]}  Qc7+ {[%clk 0:01:59]} 25. Kd2 {[%clk 0:01:18]}  Qc3# {[%clk 0:01:59]} 0-1


[Site "https://www.chess.com"]